[Event "Rapid della Domenica"]
[Site "Chess.com"]
[Date "2020.05.03"]
[Round "1"]
[White "toninoiuorio"]
[Black "fausto2p"]
[Result "1-0"]
[WhiteElo "1521"]
[BlackElo "976"]
[TimeControl "720+3"]
[EndTime "6:05:20 PDT"]
[Termination "toninoiuorio ha vinto per abbandono"]

1. d4 {[%clk 0:12:00.3]} 1... d5 {[%clk 0:11:58.1]} 2. c4 {[%clk 0:12:02.1]}
2... c6 {[%clk 0:11:57.8]} 3. Nc3 {[%clk 0:12:03.9]} 3... Nf6 {[%clk 0:11:57.4]}
4. e3 {[%clk 0:12:06.1]} 4... e6 {[%clk 0:11:52]} 5. Bd3 {[%clk 0:12:06.5]} 5...
Bb4 {[%clk 0:11:43.5]} 6. Nf3 {[%clk 0:12:08.2]} 6... Qa5 {[%clk 0:11:35.6]} 7.
Bd2 {[%clk 0:12:08.7]} 7... dxc4 {[%clk 0:11:18.8]} 8. Bxc4 {[%clk 0:12:07.8]}
8... b5 {[%clk 0:11:19.3]} 9. Bd3 {[%clk 0:12:09]} 9... O-O {[%clk 0:11:02.2]}
10. O-O {[%clk 0:12:09.2]} 10... Nd5 {[%clk 0:10:09.1]} 11. Qc2 {[%clk
0:11:47.5]} 11... h6 {[%clk 0:09:22.1]} 12. a3 {[%clk 0:11:43.2]} 12... Bxc3
{[%clk 0:09:11.4]} 13. bxc3 {[%clk 0:11:44.3]} 13... Bb7 {[%clk 0:08:58.2]} 14.
c4 {[%clk 0:11:45.6]} 14... bxc4 {[%clk 0:08:47.7]} 15. Bxa5 {[%clk 0:11:44.9]}
1-0

[Event "Rapid della Domenica"]
[Site "Chess.com"]
[Date "2020.05.03"]
[Round "1"]
[White "crippo"]
[Black "laremaro"]
[Result "1/2-1/2"]
[WhiteElo "1468"]
[BlackElo "1643"]
[TimeControl "720+3"]
[EndTime "6:09:03 PDT"]
[Termination "Patta d'accordo"]

1. e4 {[%clk 0:10:14.5]} 1... d5 {[%clk 0:11:58]} 2. exd5 {[%clk 0:10:16]} 2...
Qxd5 {[%clk 0:11:59]} 3. Nc3 {[%clk 0:10:18]} 3... Qd6 {[%clk 0:12:00.7]} 4. Nf3
{[%clk 0:10:19.1]} 4... Bg4 {[%clk 0:12:01.3]} 5. d3 {[%clk 0:10:20.6]} 5... Nf6
{[%clk 0:12:01.2]} 6. Be2 {[%clk 0:10:22.5]} 6... c6 {[%clk 0:12:03]} 7. O-O
{[%clk 0:10:23.3]} 7... e6 {[%clk 0:12:05.5]} 8. Ng5 {[%clk 0:10:19]} 8... Bxe2
{[%clk 0:12:06.3]} 9. Qxe2 {[%clk 0:10:20.2]} 9... Be7 {[%clk 0:12:07.2]} 10.
Nge4 {[%clk 0:10:20.9]} 10... Qc7 {[%clk 0:12:06.6]} 11. b3 {[%clk 0:10:10.2]}
11... Nbd7 {[%clk 0:12:06.7]} 12. Bb2 {[%clk 0:10:11.7]} 12... O-O {[%clk
0:12:08.1]} 13. f4 {[%clk 0:09:50.4]} 13... Rfe8 {[%clk 0:12:02.7]} 14. Nxf6+
{[%clk 0:09:46.2]} 14... Nxf6 {[%clk 0:12:02.4]} 15. Ne4 {[%clk 0:09:47.1]}
15... Nxe4 {[%clk 0:11:16.1]} 16. dxe4 {[%clk 0:09:46]} 16... Rad8 {[%clk
0:11:11.3]} 17. Qg4 {[%clk 0:09:42.2]} 17... Bf8 {[%clk 0:11:10.7]} 18. Rad1
{[%clk 0:09:39.1]} 18... Rxd1 {[%clk 0:11:00.9]} 19. Rxd1 {[%clk 0:09:39.9]}
19... Rd8 {[%clk 0:11:03.5]} 20. Rxd8 {[%clk 0:09:35.9]} 20... Qxd8 {[%clk
0:11:05.3]} 21. Qe2 {[%clk 0:09:33.8]} 21... Qd6 {[%clk 0:10:44.3]} 22. Be5
{[%clk 0:09:22.6]} 22... Qc5+ {[%clk 0:10:37.5]} 23. Qf2 {[%clk 0:09:21.3]}
23... Qxf2+ {[%clk 0:10:37.5]} 24. Kxf2 {[%clk 0:09:22.8]} 24... f6 {[%clk
0:10:34.5]} 25. Bd4 {[%clk 0:09:22.3]} 25... a6 {[%clk 0:10:33.6]} 26. c4 {[%clk
0:09:17.8]} 26... Kf7 {[%clk 0:10:33.1]} 27. g4 {[%clk 0:09:11]} 27... g6 {[%clk
0:10:32.9]} 28. h4 {[%clk 0:09:10.8]} 28... f5 {[%clk 0:10:34.7]} 29. gxf5
{[%clk 0:09:08.2]} 29... gxf5 {[%clk 0:10:31]} 30. exf5 {[%clk 0:09:02.2]} 30...
exf5 {[%clk 0:10:32.2]} 31. Kf3 {[%clk 0:09:03.6]} 31... Kg6 {[%clk 0:10:32]}
32. Kg3 {[%clk 0:09:04]} 32... Be7 {[%clk 0:10:29.5]} 33. Bf2 {[%clk 0:08:52.7]}
33... Kh5 {[%clk 0:10:27]} 34. Kh3 {[%clk 0:08:54.5]} 34... Bd6 {[%clk
0:10:26.3]} 35. Bg3 {[%clk 0:08:55.1]} 35... Bc5 {[%clk 0:10:23.2]} 36. Be1
{[%clk 0:08:38.6]} 36... Be3 {[%clk 0:10:21.9]} 37. Bg3 {[%clk 0:08:40.1]}
1/2-1/2

[Event "Rapid della Domenica"]
[Site "Chess.com"]
[Date "2020.05.03"]
[Round "1"]
[White "ferrariand"]
[Black "SanSecondoPR"]
[Result "0-1"]
[WhiteElo "1514"]
[BlackElo "1322"]
[TimeControl "720+3"]
[EndTime "6:09:20 PDT"]
[Termination "SanSecondoPR ha vinto per scaccomatto"]

1. e4 {[%clk 0:12:02.9]} 1... e5 {[%clk 0:11:57.7]} 2. Nf3 {[%clk 0:11:33.7]}
2... Nc6 {[%clk 0:11:58]} 3. Bb5 {[%clk 0:11:34.4]} 3... Nge7 {[%clk 0:11:57.1]}
4. O-O {[%clk 0:11:33.6]} 4... d6 {[%clk 0:11:56.6]} 5. c3 {[%clk 0:11:30.5]}
5... Bg4 {[%clk 0:11:57.4]} 6. h3 {[%clk 0:11:03.7]} 6... Bh5 {[%clk 0:11:55.7]}
7. d3 {[%clk 0:10:49.6]} 7... a6 {[%clk 0:11:53.6]} 8. Ba4 {[%clk 0:10:50.4]}
8... b5 {[%clk 0:11:51.4]} 9. Bc2 {[%clk 0:10:51.3]} 9... f6 {[%clk 0:11:48]}
10. g4 {[%clk 0:10:45.5]} 10... Bf7 {[%clk 0:11:46.6]} 11. d4 {[%clk 0:10:42]}
11... Ng6 {[%clk 0:11:35.6]} 12. Be3 {[%clk 0:10:24.4]} 12... Be7 {[%clk
0:11:29.6]} 13. Nbd2 {[%clk 0:10:10.5]} 13... O-O {[%clk 0:11:28.4]} 14. Re1
{[%clk 0:10:10.1]} 14... Qb8 {[%clk 0:11:12.5]} 15. Nf1 {[%clk 0:10:08]} 15...
Qb7 {[%clk 0:10:55.7]} 16. Ng3 {[%clk 0:09:59.7]} 16... Rae8 {[%clk 0:10:40.2]}
17. Nf5 {[%clk 0:09:57.8]} 17... Bd8 {[%clk 0:10:36.8]} 18. Qd2 {[%clk
0:09:43.2]} 18... Nce7 {[%clk 0:10:33.3]} 19. b3 {[%clk 0:09:29.5]} 19... Nxf5
{[%clk 0:09:50]} 20. exf5 {[%clk 0:09:26.7]} 20... Nh8 {[%clk 0:09:38.1]} 21.
Qe2 {[%clk 0:09:06.1]} 21... Bd5 {[%clk 0:09:28]} 22. Nd2 {[%clk 0:08:26.1]}
22... exd4 {[%clk 0:09:18]} 23. cxd4 {[%clk 0:08:26.3]} 23... Bh1 {[%clk
0:08:58.3]} 24. Kh2 {[%clk 0:08:26]} 24... Qg2# {[%clk 0:08:49.7]} 0-1

[Event "Rapid della Domenica"]
[Site "Chess.com"]
[Date "2020.05.03"]
[Round "1"]
[White "Simo2005"]
[Black "sergiodone"]
[Result "1-0"]
[WhiteElo "1605"]
[BlackElo "1503"]
[TimeControl "720+3"]
[EndTime "6:09:58 PDT"]
[Termination "Simo2005 ha vinto per abbandono"]

1. e4 {[%clk 0:11:57.5]} 1... c5 {[%clk 0:11:59]} 2. c3 {[%clk 0:11:56.5]} 2...
d6 {[%clk 0:11:57.8]} 3. d4 {[%clk 0:11:54.7]} 3... cxd4 {[%clk 0:11:59]} 4.
cxd4 {[%clk 0:11:56.4]} 4... e6 {[%clk 0:12:00.7]} 5. Be3 {[%clk 0:11:50.8]}
5... a6 {[%clk 0:12:01.4]} 6. Nf3 {[%clk 0:11:48.3]} 6... Be7 {[%clk 0:12:02.8]}
7. Nc3 {[%clk 0:11:43.4]} 7... Bd7 {[%clk 0:12:02.6]} 8. Bc4 {[%clk 0:11:37.2]}
8... b5 {[%clk 0:12:02.7]} 9. Bb3 {[%clk 0:11:34.5]} 9... Nc6 {[%clk 0:12:01]}
10. O-O {[%clk 0:11:22.2]} 10... Nf6 {[%clk 0:11:58.6]} 11. Bc2 {[%clk
0:11:13.9]} 11... Qc7 {[%clk 0:11:58.6]} 12. Rc1 {[%clk 0:11:07.7]} 12... Rc8
{[%clk 0:11:48.3]} 13. Qd2 {[%clk 0:10:38.6]} 13... h5 {[%clk 0:11:48.4]} 14.
Rfe1 {[%clk 0:09:33.1]} 14... Qb7 {[%clk 0:11:39.4]} 15. d5 {[%clk 0:08:59]}
15... Nb4 {[%clk 0:11:26.4]} 16. dxe6 {[%clk 0:08:31]} 16... fxe6 {[%clk
0:11:17.3]} 17. Bb1 {[%clk 0:08:10.4]} 17... Bc6 {[%clk 0:11:02.6]} 18. a3
{[%clk 0:07:46.5]} 18... Bxe4 {[%clk 0:11:01.7]} 19. Bxe4 {[%clk 0:07:02.7]}
19... Nxe4 {[%clk 0:10:55]} 20. Nxe4 {[%clk 0:07:00.4]} 20... Rxc1 {[%clk
0:10:55]} 21. Rxc1 {[%clk 0:06:38.4]} 21... Qxe4 {[%clk 0:10:49.5]} 22. Qxb4
{[%clk 0:05:58.1]} 22... O-O {[%clk 0:10:40.3]} 23. Qxe4 {[%clk 0:05:51.8]} 1-0

[Event "Rapid della Domenica"]
[Site "Chess.com"]
[Date "2020.05.03"]
[Round "1"]
[White "sirmale49"]
[Black "donaldnecesito"]
[Result "0-1"]
[WhiteElo "1411"]
[BlackElo "1649"]
[TimeControl "720+3"]
[EndTime "6:11:48 PDT"]
[Termination "donaldnecesito ha vinto per scaccomatto"]

1. e4 {[%clk 0:11:55.6]} 1... c5 {[%clk 0:12:00.4]} 2. f4 {[%clk 0:11:56.3]}
2... d6 {[%clk 0:12:00.8]} 3. Nf3 {[%clk 0:11:57.5]} 3... Nc6 {[%clk 0:12:00.6]}
4. Nc3 {[%clk 0:11:57.9]} 4... g6 {[%clk 0:12:00.9]} 5. Bb5 {[%clk 0:11:58.7]}
5... Bg7 {[%clk 0:12:00.4]} 6. O-O {[%clk 0:11:45.4]} 6... Bd7 {[%clk
0:11:56.8]} 7. d3 {[%clk 0:11:42.5]} 7... Nf6 {[%clk 0:11:55.1]} 8. h3 {[%clk
0:11:41.3]} 8... O-O {[%clk 0:11:27.6]} 9. Nd5 {[%clk 0:11:13.6]} 9... a6 {[%clk
0:11:14.7]} 10. Bxc6 {[%clk 0:10:54.5]} 10... bxc6 {[%clk 0:11:11]} 11. Nxf6+
{[%clk 0:10:55.5]} 11... Bxf6 {[%clk 0:11:09.5]} 12. e5 {[%clk 0:10:56.7]} 12...
Bg7 {[%clk 0:11:07.6]} 13. Re1 {[%clk 0:10:32.5]} 13... Rb8 {[%clk 0:11:00.9]}
14. Rb1 {[%clk 0:10:18.3]} 14... Qa5 {[%clk 0:10:53.7]} 15. Bd2 {[%clk
0:09:45.9]} 15... Qxa2 {[%clk 0:10:52.2]} 16. Bc3 {[%clk 0:09:42.2]} 16... Qa4
{[%clk 0:09:28.4]} 17. Qd2 {[%clk 0:09:31.4]} 17... d5 {[%clk 0:09:05.4]} 18. b3
{[%clk 0:09:22.6]} 18... Qb5 {[%clk 0:09:03.6]} 19. d4 {[%clk 0:08:46.4]} 19...
Bf5 {[%clk 0:08:37]} 20. dxc5 {[%clk 0:08:41.3]} 20... Qxc5+ {[%clk 0:08:25]}
21. Nd4 {[%clk 0:08:32.5]} 21... Be4 {[%clk 0:08:09.3]} 22. Kh2 {[%clk
0:08:24.8]} 22... Bh6 {[%clk 0:07:28.9]} 23. g3 {[%clk 0:08:23.4]} 23... Qb6
{[%clk 0:07:18.7]} 24. Ne2 {[%clk 0:07:42.9]} 24... Qf2# {[%clk 0:07:17.1]} 0-1

[Event "Rapid della Domenica"]
[Site "Chess.com"]
[Date "2020.05.03"]
[Round "1"]
[White "pedrak"]
[Black "MarcoCiva"]
[Result "1-0"]
[WhiteElo "1665"]
[BlackElo "1412"]
[TimeControl "720+3"]
[EndTime "6:11:51 PDT"]
[Termination "pedrak ha vinto per abbandono"]

1. Nf3 {[%clk 0:12:02.3]} 1... Nf6 {[%clk 0:11:59.3]} 2. g3 {[%clk 0:12:02.9]}
2... d6 {[%clk 0:11:56.6]} 3. Bg2 {[%clk 0:12:04.3]} 3... e5 {[%clk 0:11:58.1]}
4. d3 {[%clk 0:12:05.3]} 4... Be6 {[%clk 0:11:57]} 5. O-O {[%clk 0:12:06.6]}
5... Be7 {[%clk 0:11:55.5]} 6. e4 {[%clk 0:12:07.7]} 6... O-O {[%clk 0:11:56.3]}
7. h3 {[%clk 0:12:03.6]} 7... Qd7 {[%clk 0:11:54.9]} 8. Kh2 {[%clk 0:12:04.8]}
8... Nc6 {[%clk 0:11:48]} 9. c3 {[%clk 0:12:05.3]} 9... h6 {[%clk 0:11:38.5]}
10. Ne1 {[%clk 0:12:00.6]} 10... Rad8 {[%clk 0:11:11.3]} 11. f4 {[%clk
0:11:59.8]} 11... exf4 {[%clk 0:11:05]} 12. gxf4 {[%clk 0:12:00.6]} 12... Qc8
{[%clk 0:10:51.8]} 13. Be3 {[%clk 0:11:55.9]} 13... d5 {[%clk 0:10:36.9]} 14. e5
{[%clk 0:11:56.7]} 14... Nd7 {[%clk 0:10:32.8]} 15. Rg1 {[%clk 0:11:56.7]} 15...
Bc5 {[%clk 0:10:24.3]} 16. d4 {[%clk 0:11:57.2]} 16... Bb6 {[%clk 0:10:22.7]}
17. Qf3 {[%clk 0:11:53.1]} 17... f6 {[%clk 0:10:15.7]} 18. Qg3 {[%clk
0:11:50.2]} 18... Rf7 {[%clk 0:09:46.4]} 19. Nf3 {[%clk 0:11:35]} 19... Nf8
{[%clk 0:09:24.7]} 20. Nh4 {[%clk 0:11:32.8]} 20... Ne7 {[%clk 0:09:11.6]} 21.
Nd2 {[%clk 0:11:27.5]} 21... Nf5 {[%clk 0:09:10]} 22. Nxf5 {[%clk 0:11:27.6]}
22... Bxf5 {[%clk 0:09:11.5]} 23. Nf3 {[%clk 0:11:17.9]} 23... Ng6 {[%clk
0:09:08.6]} 24. Nh4 {[%clk 0:11:18.6]} 24... Nxh4 {[%clk 0:09:09.4]} 25. Qxh4
{[%clk 0:11:20]} 25... Qe6 {[%clk 0:08:56.2]} 26. Bf3 {[%clk 0:11:19.5]} 26...
fxe5 {[%clk 0:08:49.6]} 27. fxe5 {[%clk 0:11:12]} 27... Re8 {[%clk 0:08:42.5]}
28. Bh5 {[%clk 0:11:09.8]} 28... g6 {[%clk 0:08:23.9]} 29. Bxh6 {[%clk
0:10:56.1]} 29... Rh7 {[%clk 0:08:12.4]} 30. Be3 {[%clk 0:10:56.2]} 30... c6
{[%clk 0:08:11.2]} 31. Qg5 {[%clk 0:10:54.9]} 31... Bd8 {[%clk 0:08:04]} 32.
Bxg6 {[%clk 0:09:19.6]} 32... Rxh3+ {[%clk 0:07:59.8]} 33. Kg2 {[%clk
0:09:20.8]} 33... Bxg5 {[%clk 0:07:57.7]} 34. Bxf5 {[%clk 0:09:22.4]} 34... Qxf5
{[%clk 0:07:58]} 35. Bxg5 {[%clk 0:09:24.1]} 35... Rh5 {[%clk 0:07:30.8]} 36.
Bf6 {[%clk 0:09:21]} 36... Qxf6 {[%clk 0:07:27.8]} 37. exf6 {[%clk 0:09:21.5]}
37... Re2+ {[%clk 0:07:17.2]} 38. Kf3+ {[%clk 0:09:19.9]} 1-0

[Event "Rapid della Domenica"]
[Site "Chess.com"]
[Date "2020.05.03"]
[Round "1"]
[White "fisherpez"]
[Black "giulioscaglione"]
[Result "1-0"]
[WhiteElo "1593"]
[BlackElo "1370"]
[TimeControl "720+3"]
[EndTime "6:12:41 PDT"]
[Termination "fisherpez ha vinto per abbandono"]

1. e3 {[%clk 0:12:00.6]} 1... e6 {[%clk 0:11:59.3]} 2. b3 {[%clk 0:12:02.6]}
2... b6 {[%clk 0:12:00.8]} 3. Bb2 {[%clk 0:12:04.5]} 3... Bb7 {[%clk 0:12:01.3]}
4. Nf3 {[%clk 0:12:06.4]} 4... Ne7 {[%clk 0:12:00.7]} 5. d3 {[%clk 0:12:08.5]}
5... d6 {[%clk 0:12:00.8]} 6. Be2 {[%clk 0:12:10]} 6... Nd7 {[%clk 0:12:02.4]}
7. Nbd2 {[%clk 0:12:09.5]} 7... Ng6 {[%clk 0:12:03.4]} 8. O-O {[%clk 0:12:07.7]}
8... e5 {[%clk 0:12:04.4]} 9. e4 {[%clk 0:12:08.1]} 9... Be7 {[%clk 0:12:05.7]}
10. h3 {[%clk 0:12:07]} 10... O-O {[%clk 0:12:07]} 11. a4 {[%clk 0:12:03.5]}
11... f5 {[%clk 0:11:45.2]} 12. Nh2 {[%clk 0:12:01.3]} 12... fxe4 {[%clk
0:11:41.4]} 13. Nxe4 {[%clk 0:12:02.1]} 13... Bxe4 {[%clk 0:11:42.6]} 14. dxe4
{[%clk 0:12:03]} 14... Nf4 {[%clk 0:11:43.3]} 15. Bf3 {[%clk 0:11:58.9]} 15...
Ng6 {[%clk 0:11:08.9]} 16. Bc1 {[%clk 0:11:59.3]} 16... Bg5 {[%clk 0:11:07.9]}
17. Qd5+ {[%clk 0:11:45.3]} 17... Kh8 {[%clk 0:11:05.5]} 18. Bg4 {[%clk
0:11:46.6]} 18... Bxc1 {[%clk 0:10:59.7]} 19. Raxc1 {[%clk 0:11:43.1]} 19... Nf6
{[%clk 0:10:54.7]} 20. Qd1 {[%clk 0:11:42]} 20... Nxg4 {[%clk 0:10:53.4]} 21.
Qxg4 {[%clk 0:11:35.9]} 21... Qh4 {[%clk 0:10:36.1]} 22. Qxh4 {[%clk 0:11:36]}
22... Nxh4 {[%clk 0:10:37.2]} 23. c4 {[%clk 0:11:28.4]} 23... Rf6 {[%clk
0:10:26.2]} 24. Rc3 {[%clk 0:11:23.3]} 24... Rg6 {[%clk 0:10:27.2]} 25. g3
{[%clk 0:11:17.8]} 25... Rg5 {[%clk 0:10:08.8]} 26. Nf3 {[%clk 0:11:08.3]} 26...
Nxf3+ {[%clk 0:10:02.1]} 27. Rxf3 {[%clk 0:11:09.7]} 27... Kg8 {[%clk
0:10:03.7]} 28. b4 {[%clk 0:10:50.5]} 28... Rf8 {[%clk 0:10:02.4]} 29. Kg2
{[%clk 0:10:51.2]} 29... Rg6 {[%clk 0:09:59.9]} 30. Rxf8+ {[%clk 0:10:39.4]}
30... Kxf8 {[%clk 0:10:00.8]} 31. Kf3 {[%clk 0:10:41]} 31... Rf6+ {[%clk
0:10:02]} 32. Ke3 {[%clk 0:10:42.9]} 32... Ke7 {[%clk 0:10:03.6]} 33. f3 {[%clk
0:10:36.5]} 33... c6 {[%clk 0:10:04.9]} 34. h4 {[%clk 0:10:35.6]} 34... a6
{[%clk 0:10:04.9]} 35. g4 {[%clk 0:10:37.3]} 35... g6 {[%clk 0:10:04.7]} 36. Rd1
{[%clk 0:10:37.7]} 36... h6 {[%clk 0:10:01.1]} 37. b5 {[%clk 0:10:36.9]} 37...
axb5 {[%clk 0:09:49]} 38. axb5 {[%clk 0:10:38.7]} 38... Kd7 {[%clk 0:09:34.8]}
39. Ra1 {[%clk 0:10:35.1]} 39... cxb5 {[%clk 0:09:04.9]} 40. cxb5 {[%clk
0:10:34.1]} 40... Kc8 {[%clk 0:08:15.1]} 41. Ra7 {[%clk 0:10:33.5]} 41... Kb8
{[%clk 0:08:10.3]} 42. Re7 {[%clk 0:10:34.7]} 42... h5 {[%clk 0:07:57]} 43. gxh5
{[%clk 0:10:22.6]} 43... gxh5 {[%clk 0:07:57.8]} 44. Rh7 {[%clk 0:10:24.4]}
44... Kc8 {[%clk 0:07:43.9]} 45. Rxh5 {[%clk 0:10:26.3]} 45... Kd7 {[%clk
0:07:45.7]} 46. Rh8 {[%clk 0:10:25.1]} 46... Ke6 {[%clk 0:07:43.8]} 47. h5
{[%clk 0:10:27.3]} 47... d5 {[%clk 0:07:44.5]} 48. exd5+ {[%clk 0:10:23.9]}
48... Kxd5 {[%clk 0:07:46.2]} 49. h6 {[%clk 0:10:26.4]} 49... Kc5 {[%clk
0:07:46.1]} 50. h7 {[%clk 0:10:27]} 50... Rh6 {[%clk 0:07:19.4]} 51. Rc8+ {[%clk
0:10:20]} 51... Kxb5 {[%clk 0:07:22.3]} 52. h8=Q {[%clk 0:10:20.6]} 52... Rxh8
{[%clk 0:07:23]} 53. Rxh8 {[%clk 0:10:22.3]} 53... Kc4 {[%clk 0:07:25.3]} 54.
Rh4+ {[%clk 0:10:21.8]} 54... Kd5 {[%clk 0:07:24.7]} 55. Rb4 {[%clk 0:10:22.5]}
55... Kc5 {[%clk 0:07:26]} 56. Rb1 {[%clk 0:10:24]} 56... b5 {[%clk 0:07:27.6]}
57. Ke4 {[%clk 0:10:26.4]} 57... b4 {[%clk 0:07:26.2]} 58. Kxe5 {[%clk
0:10:28.5]} 58... Kc4 {[%clk 0:07:28.7]} 59. f4 {[%clk 0:10:30.6]} 59... b3
{[%clk 0:07:31.2]} 60. f5 {[%clk 0:10:32.7]} 60... Kc3 {[%clk 0:07:32.7]} 61. f6
{[%clk 0:10:34.3]} 61... Kc2 {[%clk 0:07:34.9]} 62. Rxb3 {[%clk 0:10:36.5]}
62... Kxb3 {[%clk 0:07:36.6]} 63. f7 {[%clk 0:10:38.4]} 1-0

[Event "Rapid della Domenica"]
[Site "Chess.com"]
[Date "2020.05.03"]
[Round "1"]
[White "riccardocanossa"]
[Black "markk000"]
[Result "1-0"]
[WhiteElo "1460"]
[BlackElo "1528"]
[TimeControl "720+3"]
[EndTime "6:22:11 PDT"]
[Termination "riccardocanossa ha vinto per scaccomatto"]

1. d4 {[%clk 0:12:01.3]} 1... Nf6 {[%clk 0:12:00.9]} 2. c4 {[%clk 0:12:03.2]}
2... g6 {[%clk 0:11:55]} 3. Nc3 {[%clk 0:12:02.7]} 3... Bg7 {[%clk 0:11:57.5]}
4. e4 {[%clk 0:12:01.2]} 4... O-O {[%clk 0:11:59.7]} 5. e5 {[%clk 0:11:59.5]}
5... Nh5 {[%clk 0:11:46.7]} 6. Nf3 {[%clk 0:11:50.6]} 6... Nf4 {[%clk
0:11:39.3]} 7. Bxf4 {[%clk 0:11:43.2]} 7... d6 {[%clk 0:11:20.5]} 8. Be2 {[%clk
0:11:14]} 8... Bf5 {[%clk 0:11:19.5]} 9. O-O {[%clk 0:11:04.1]} 9... Nc6 {[%clk
0:11:19.3]} 10. a3 {[%clk 0:10:09.5]} 10... a5 {[%clk 0:11:12.5]} 11. Rc1 {[%clk
0:09:12.8]} 11... f6 {[%clk 0:10:16.6]} 12. exd6 {[%clk 0:08:43.8]} 12... cxd6
{[%clk 0:10:14.6]} 13. d5 {[%clk 0:08:17.6]} 13... Ne5 {[%clk 0:10:16]} 14. Nxe5
{[%clk 0:08:12.3]} 14... fxe5 {[%clk 0:10:18.9]} 15. Bg5 {[%clk 0:07:48.9]}
15... Rc8 {[%clk 0:10:11.4]} 16. b3 {[%clk 0:07:34]} 16... h6 {[%clk 0:10:09.6]}
17. Be3 {[%clk 0:07:27.2]} 17... e6 {[%clk 0:09:44.4]} 18. Bd3 {[%clk 0:07:02]}
18... exd5 {[%clk 0:09:04.5]} 19. Bxf5 {[%clk 0:06:33.8]} 19... gxf5 {[%clk
0:09:06.1]} 20. Qxd5+ {[%clk 0:06:27.4]} 20... Kh8 {[%clk 0:09:04.8]} 21. Qxb7
{[%clk 0:04:59.5]} 21... f4 {[%clk 0:08:58.5]} 22. Bb6 {[%clk 0:04:43.9]} 22...
Qg5 {[%clk 0:08:58.2]} 23. Qf3 {[%clk 0:03:36.7]} 23... Rb8 {[%clk 0:08:50.2]}
24. Bxa5 {[%clk 0:03:17.4]} 24... Rxb3 {[%clk 0:08:51.9]} 25. Bb4 {[%clk
0:02:59.5]} 25... Re8 {[%clk 0:08:50.2]} 26. Rfe1 {[%clk 0:02:42.8]} 26... Re6
{[%clk 0:08:14.2]} 27. Qa8+ {[%clk 0:01:15.8]} 27... Kh7 {[%clk 0:08:15.2]} 28.
Qe4+ {[%clk 0:01:14.6]} 28... Kh8 {[%clk 0:08:15.2]} 29. Qf3 {[%clk 0:01:12.6]}
29... Rg6 {[%clk 0:08:16.7]} 30. g3 {[%clk 0:00:53.4]} 30... h5 {[%clk
0:08:07.3]} 31. Rb1 {[%clk 0:00:38.9]} 31... Rxb1 {[%clk 0:08:03.7]} 32. Rxb1
{[%clk 0:00:40.6]} 32... h4 {[%clk 0:08:05.6]} 33. Rd1 {[%clk 0:00:37.7]} 33...
fxg3 {[%clk 0:07:51.5]} 34. fxg3 {[%clk 0:00:35]} 34... hxg3 {[%clk 0:07:53.3]}
35. hxg3 {[%clk 0:00:33.5]} 35... Rf6 {[%clk 0:07:34.1]} 36. Qa8+ {[%clk
0:00:29.7]} 36... Kh7 {[%clk 0:07:35.9]} 37. Qe4+ {[%clk 0:00:30.4]} 37... Kh8
{[%clk 0:07:37.3]} 38. Kg2 {[%clk 0:00:25.5]} 38... Bf8 {[%clk 0:07:02.5]} 39.
Rh1+ {[%clk 0:00:26.9]} 39... Rh6 {[%clk 0:06:59.4]} 40. Rxh6+ {[%clk
0:00:26.3]} 40... Qxh6 {[%clk 0:07:02.3]} 41. Qh4 {[%clk 0:00:24.9]} 41... Kh7
{[%clk 0:07:00]} 42. Qxh6+ {[%clk 0:00:26.4]} 42... Kxh6 {[%clk 0:07:02.9]} 43.
Kf3 {[%clk 0:00:24.5]} 43... Kg5 {[%clk 0:07:04.9]} 44. Ne4+ {[%clk 0:00:22.5]}
44... Kf5 {[%clk 0:07:06.3]} 45. Nxd6+ {[%clk 0:00:25]} 45... Bxd6 {[%clk
0:07:08.5]} 46. Bxd6 {[%clk 0:00:26.9]} 46... Ke6 {[%clk 0:07:11.4]} 47. Bxe5
{[%clk 0:00:28.1]} 47... Kxe5 {[%clk 0:07:13.5]} 48. a4 {[%clk 0:00:28.8]} 48...
Kd6 {[%clk 0:07:15.8]} 49. a5 {[%clk 0:00:30.6]} 49... Kc7 {[%clk 0:07:17.9]}
50. Kf4 {[%clk 0:00:33.4]} 50... Kb7 {[%clk 0:07:20.3]} 51. Kf5 {[%clk
0:00:36.3]} 51... Ka6 {[%clk 0:07:23.2]} 52. Kf6 {[%clk 0:00:38.7]} 52... Kxa5
{[%clk 0:07:25.3]} 53. g4 {[%clk 0:00:41.6]} 53... Kb4 {[%clk 0:07:27.9]} 54. g5
{[%clk 0:00:44.5]} 54... Kxc4 {[%clk 0:07:30.8]} 55. g6 {[%clk 0:00:47.2]} 55...
Kd5 {[%clk 0:07:33.7]} 56. g7 {[%clk 0:00:50.1]} 56... Kd4 {[%clk 0:07:36.6]}
57. g8=Q {[%clk 0:00:52.3]} 57... Ke4 {[%clk 0:07:39.5]} 58. Qg5 {[%clk
0:00:53.8]} 58... Kd4 {[%clk 0:07:42.4]} 59. Qf5 {[%clk 0:00:56]} 59... Kc3
{[%clk 0:07:43.1]} 60. Qe4 {[%clk 0:00:57.5]} 60... Kd2 {[%clk 0:07:44.6]} 61.
Qf3 {[%clk 0:00:58.4]} 61... Ke1 {[%clk 0:07:46.9]} 62. Qg2 {[%clk 0:00:59.6]}
62... Kd1 {[%clk 0:07:48.6]} 63. Qf2 {[%clk 0:01:01.6]} 63... Kc1 {[%clk
0:07:50.6]} 64. Qe2 {[%clk 0:01:02.6]} 64... Kb1 {[%clk 0:07:53]} 65. Qd2 {[%clk
0:01:03.9]} 65... Ka1 {[%clk 0:07:55.3]} 66. Ke5 {[%clk 0:01:05.6]} 66... Kb1
{[%clk 0:07:58.2]} 67. Kd4 {[%clk 0:01:07.4]} 67... Ka1 {[%clk 0:08:01.1]} 68.
Kc3 {[%clk 0:01:09.3]} 68... Kb1 {[%clk 0:08:04]} 69. Qb2# {[%clk 0:01:10.7]}
1-0

[Event "Rapid della Domenica"]
[Site "Chess.com"]
[Date "2020.05.03"]
[Round "2"]
[White "markk000"]
[Black "crippo"]
[Result "0-1"]
[WhiteElo "1513"]
[BlackElo "1490"]
[TimeControl "720+3"]
[EndTime "6:24:26 PDT"]
[Termination "crippo ha vinto per abbandono"]

1. d4 {[%clk 0:12:02.9]} 1... d5 {[%clk 0:11:48.6]} 2. c4 {[%clk 0:12:05.3]}
2... c6 {[%clk 0:11:50.1]} 3. Nc3 {[%clk 0:12:07.5]} 3... Nf6 {[%clk 0:11:51.3]}
4. Nf3 {[%clk 0:12:09.8]} 4... e6 {[%clk 0:11:53.3]} 5. Bg5 {[%clk 0:12:12.2]}
5... Be7 {[%clk 0:11:54.8]} 6. e3 {[%clk 0:12:14.6]} 6... Ne4 {[%clk 0:11:55.9]}
7. Bxe7 {[%clk 0:12:16.1]} 7... Qxe7 {[%clk 0:11:57.3]} 8. Bd3 {[%clk
0:12:12.5]} 8... f5 {[%clk 0:11:58.1]} 9. cxd5 {[%clk 0:12:14.3]} 9... cxd5
{[%clk 0:11:58.9]} 10. Qa4+ {[%clk 0:12:14.4]} 10... Nc6 {[%clk 0:11:56.9]} 11.
Ne5 {[%clk 0:12:13.9]} 11... Bd7 {[%clk 0:11:58.2]} 12. Bb5 {[%clk 0:12:14.6]}
12... Nxe5 {[%clk 0:11:57]} 13. Bxd7+ {[%clk 0:12:14.7]} 13... Nxd7 {[%clk
0:11:58]} 14. Nxe4 {[%clk 0:12:13]} 14... fxe4 {[%clk 0:11:58.9]} 15. O-O {[%clk
0:12:15.9]} 15... O-O {[%clk 0:11:59.9]} 16. Rac1 {[%clk 0:12:14.9]} 16... Nb6
{[%clk 0:12:01.7]} 17. Qb3 {[%clk 0:12:14.6]} 17... Rac8 {[%clk 0:12:02]} 18.
Rxc8 {[%clk 0:12:15.5]} 18... Rxc8 {[%clk 0:12:02.8]} 19. a4 {[%clk 0:12:17.2]}
19... Nc4 {[%clk 0:12:03.8]} 20. h4 {[%clk 0:12:10.4]} 20... Nd2 {[%clk
0:12:04.2]} 0-1